[Event "Masters Tournament (MTO)"]
[Site "Biel, Switzerland"]
[Date "2026.07.14"]
[Round "2.6"]
[White "Kozak, Adam"]
[Black "Dauth, Benjamin"]
[Result "1-0"]
[TimeControl "100+30+30sec/move"]
[WhiteTitle "-"]
[BlackTitle "-"]
[WhiteFideId "753246"]
[BlackFideId "4688104"]
[WhiteElo "2531"]
[BlackElo "2247"]

1. d4 {[%clk 01:40:31]} {[%emt 00:00:16]} d5 {[%clk 01:40:37]} {[%emt
00:00:36]} 2. c4 {[%clk 01:40:35]} {[%emt 00:00:27]} e6 {[%clk 01:40:57]}
{[%emt 00:00:09]} 3. Nc3 {[%clk 01:40:32]} {[%emt 00:00:32]} Nf6 {[%clk
01:41:16]} {[%emt 00:00:12]} 4. Nf3 {[%clk 01:39:14]} {[%emt 00:01:48]} Be7
{[%clk 01:40:51]} {[%emt 00:00:56]} 5. Bg5 {[%clk 01:35:31]} {[%emt 00:04:13]}
O-O {[%clk 01:41:06]} {[%emt 00:00:15]} 6. e3 {[%clk 01:35:55]} {[%emt
00:00:05]} Nbd7 {[%clk 01:37:19]} {[%emt 00:04:19]} 7. Qc2 {[%clk 01:33:05]}
{[%emt 00:03:20]} dxc4 {[%clk 01:36:24]} {[%emt 00:01:25]} 8. Bxc4 {[%clk
01:28:48]} {[%emt 00:04:47]} c5 {[%clk 01:36:43]} {[%emt 00:00:11]} 9. O-O
{[%clk 01:26:41]} {[%emt 00:02:37]} cxd4 {[%clk 01:36:59]} {[%emt 00:00:14]} 10.
Nxd4 {[%clk 01:26:51]} {[%emt 00:00:20]} Ne5 {[%clk 01:36:20]} {[%emt
00:01:09]} 11. Be2 {[%clk 01:24:15]} {[%emt 00:03:06]} Bd7 {[%clk 01:35:45]}
{[%emt 00:01:06]} 12. Rfd1 {[%clk 01:18:30]} {[%emt 00:06:14]} Qa5 {[%clk
01:24:58]} {[%emt 00:11:18]} 13. Bf4 {[%clk 01:12:24]} {[%emt 00:06:35]} Ng6
{[%clk 01:21:18]} {[%emt 00:04:10]} 14. Bg3 {[%clk 01:12:04]} {[%emt 00:00:50]}
Rac8 {[%clk 01:19:19]} {[%emt 00:02:29]} 15. Qb3 {[%clk 01:05:02]} {[%emt
00:07:32]} Bc6 {[%clk 01:17:11]} {[%emt 00:02:38]} 16. Nxc6 {[%clk 00:59:07]}
{[%emt 00:06:26]} Rxc6 {[%clk 01:15:56]} {[%emt 00:01:45]} 17. a3 {[%clk
00:41:25]} {[%emt 00:18:12]} Qb6 {[%clk 01:09:30]} {[%emt 00:06:56]} 18. Qxb6
{[%clk 00:21:03]} {[%emt 00:20:52]} Rxb6 {[%clk 01:09:49]} {[%emt 00:00:11]} 19.
Na4 {[%clk 00:21:17]} {[%emt 00:00:16]} Rc6 {[%clk 01:08:06]} {[%emt 00:02:13]}
20. Bf3 {[%clk 00:21:38]} {[%emt 00:00:08]} Ra6 {[%clk 01:06:53]} {[%emt
00:01:44]} 21. Nc3 {[%clk 00:21:01]} {[%emt 00:01:07]} e5 {[%clk 01:06:20]}
{[%emt 00:01:03]} 22. Rac1 {[%clk 00:14:15]} {[%emt 00:07:15]} Rb6 {[%clk
01:03:35]} {[%emt 00:03:17]} 23. Na4 {[%clk 00:14:02]} {[%emt 00:00:43]} Rb3
{[%clk 01:02:28]} {[%emt 00:01:37]} 24. Rd2 {[%clk 00:13:22]} {[%emt 00:01:10]}
b5 {[%clk 01:00:04]} {[%emt 00:02:54]} 25. Nc5 {[%clk 00:13:01]} {[%emt
00:00:50]} Bxc5 {[%clk 01:00:23]} {[%emt 00:00:11]} 26. Rxc5 {[%clk 00:13:27]}
{[%emt 00:00:04]} b4 {[%clk 01:00:45]} {[%emt 00:00:10]} 27. a4 {[%clk
00:13:25]} {[%emt 00:00:32]} h5 {[%clk 00:59:08]} {[%emt 00:02:06]} 28. Kf1
{[%clk 00:06:52]} {[%emt 00:08:59]} Re8 {[%clk 00:59:11]} 29. h3 {[%clk
00:06:50]} h4 {[%clk 00:59:24]} 30. Bh2 {[%clk 00:07:15]} Re7 {[%clk 00:57:10]}
{[%emt 00:02:08]} 31. Rcc2 {[%clk 00:04:37]} {[%emt 00:03:08]} Rd7 {[%clk
00:56:17]} {[%emt 00:01:23]} 32. Be2 {[%clk 00:02:02]} {[%emt 00:03:05]} Rxd2
{[%clk 00:55:25]} {[%emt 00:01:23]} 33. Rxd2 {[%clk 00:02:30]} {[%emt
00:00:01]} Ne4 {[%clk 00:55:48]} {[%emt 00:00:06]} 34. Rc2 {[%clk 00:02:53]}
{[%emt 00:00:08]} Nd6 {[%clk 00:56:10]} {[%emt 00:00:08]} 35. Ke1 {[%clk
00:02:31]} {[%emt 00:00:51]} f6 {[%clk 00:56:34]} {[%emt 00:00:06]} 36. Rd2
{[%clk 00:02:56]} {[%emt 00:00:05]} Ne7 {[%clk 00:55:36]} {[%emt 00:01:28]} 37.
Bd1 {[%emt 00:00:33]} 1-0

[Event "Masters Tournament (MTO)"]
[Site "Biel, Switzerland"]
[Date "2026.07.14"]
[Round "2.7"]
[White "Ivana Maria, Furtado"]
[Black "Gopal, G.N."]
[Result "1/2-1/2"]
[TimeControl "100+30+30sec/move"]
[WhiteTitle "-"]
[BlackTitle "-"]
[WhiteFideId "5048400"]
[BlackFideId "5015693"]
[WhiteElo "2182"]
[BlackElo "2529"]

1. d4 {[%clk 01:40:43]} {[%emt 00:00:17]} Nf6 {[%clk 01:40:56]} {[%emt
00:00:04]} 2. c4 {[%clk 01:40:48]} {[%emt 00:00:26]} e6 {[%clk 01:41:23]}
{[%emt 00:00:04]} 3. Nc3 {[%clk 01:40:46]} {[%emt 00:00:31]} Bb4 {[%clk
01:41:49]} {[%emt 00:00:05]} 4. Qc2 {[%clk 01:40:02]} {[%emt 00:01:13]} d5
{[%clk 01:41:43]} {[%emt 00:00:36]} 5. a3 {[%clk 01:38:44]} {[%emt 00:01:48]}
Bxc3+ {[%clk 01:41:39]} {[%emt 00:00:34]} 6. Qxc3 {[%emt 00:02:30]} O-O {[%clk
01:40:56]} 7. Nf3 {[%clk 01:36:10]} {[%emt 00:02:15]} b6 {[%clk 01:33:28]}
{[%emt 00:08:02]} 8. Bg5 {[%clk 01:30:10]} {[%emt 00:06:28]} Nbd7 {[%clk
01:33:21]} {[%emt 00:00:38]} 9. cxd5 {[%clk 01:28:28]} {[%emt 00:02:11]} exd5
{[%clk 01:33:39]} {[%emt 00:00:13]} 10. e3 {[%clk 01:21:52]} {[%emt 00:07:06]}
c5 {[%clk 01:32:11]} {[%emt 00:01:59]} 11. dxc5 {[%clk 01:20:41]} {[%emt
00:01:40]} bxc5 {[%clk 01:31:15]} {[%emt 00:01:27]} 12. Bxf6 {[%clk 01:10:08]}
{[%emt 00:11:02]} Qxf6 {[%clk 01:27:43]} {[%emt 00:04:03]} 13. Qxf6 {[%clk
01:10:16]} {[%emt 00:00:21]} Nxf6 {[%clk 01:27:58]} {[%emt 00:00:15]} 14. b4
{[%clk 01:06:51]} {[%emt 00:03:55]} c4 {[%clk 01:17:42]} {[%emt 00:10:46]} 15.
Nd4 {[%clk 01:05:30]} {[%emt 00:01:51]} Bd7 {[%clk 01:13:19]} {[%emt 00:04:53]}
16. Be2 {[%clk 00:53:34]} {[%emt 00:12:26]} Rfb8 {[%clk 01:07:16]} {[%emt
00:06:33]} 17. Bf3 {[%clk 00:50:29]} {[%emt 00:03:35]} a5 {[%clk 00:49:25]}
{[%emt 00:18:21]} 18. Kd2 {[%clk 00:42:48]} {[%emt 00:08:10]} g5 {[%clk
00:47:00]} {[%emt 00:02:56]} 19. h3 {[%clk 00:37:32]} {[%emt 00:05:46]} h5
{[%clk 00:39:34]} {[%emt 00:07:57]} 20. g3 {[%clk 00:30:18]} {[%emt 00:07:43]}
g4 {[%clk 00:30:58]} {[%emt 00:09:06]} 21. hxg4 {[%clk 00:28:29]} {[%emt
00:02:18]} hxg4 {[%clk 00:31:24]} {[%emt 00:00:05]} 22. Bg2 {[%clk 00:27:54]}
{[%emt 00:01:05]} axb4 {[%clk 00:31:32]} {[%emt 00:03:16]} 23. axb4 {[%clk
00:28:22]} Rxa1 {[%clk 00:31:50]} 24. Rxa1 {[%clk 00:28:46]} Rxb4 {[%clk
00:32:15]} 25. Kc3 {[%clk 00:28:39]} Rb6 {[%clk 00:28:42]} {[%emt 00:02:12]} 26.
f4 {[%clk 00:24:40]} {[%emt 00:04:29]} gxf3 {[%clk 00:27:49]} {[%emt 00:01:24]}
27. Bxf3 {[%clk 00:25:04]} {[%emt 00:00:05]} Bg4 {[%clk 00:13:33]} {[%emt
00:14:46]} 28. Bg2 {[%clk 00:19:51]} {[%emt 00:05:43]} Kg7 {[%clk 00:08:23]}
{[%emt 00:05:40]} 29. Ra5 {[%clk 00:16:54]} {[%emt 00:03:27]} Rd6 {[%clk
00:05:20]} {[%emt 00:03:33]} 30. Nb5 {[%clk 00:14:46]} {[%emt 00:02:38]} Rd7
{[%clk 00:05:49]} 31. Kd4 {[%clk 00:14:02]} {[%emt 00:01:14]} Be6 {[%clk
00:06:18]} {[%emt 00:00:02]} 32. Nc3 {[%clk 00:12:39]} {[%emt 00:01:53]} Rd8
{[%clk 00:04:58]} {[%emt 00:01:50]} 33. Bf3 {[%clk 00:12:09]} {[%emt 00:00:59]}
Kh6 {[%clk 00:02:50]} {[%emt 00:02:39]} 34. Rc5 {[%clk 00:10:17]} {[%emt
00:02:20]} Kg7 {[%clk 00:02:02]} {[%emt 00:01:20]} 35. Ra5 {[%clk 00:10:37]}
{[%emt 00:00:10]} Kh6 {[%clk 00:01:14]} {[%emt 00:01:18]} 36. Rc5 {[%clk
00:11:02]} {[%emt 00:00:04]} Rg8 {[%clk 00:00:59]} {[%emt 00:00:46]} 37. Nxd5
{[%clk 00:05:56]} {[%emt 00:05:36]} Rxg3 {[%clk 00:01:05]} {[%emt 00:00:23]} 38.
Nxf6 {[%clk 00:05:45]} {[%emt 00:00:42]} Rxf3 {[%clk 00:01:34]} {[%emt
00:00:01]} 39. Nh5 {[%clk 00:04:26]} {[%emt 00:01:49]} Rf1 {[%clk 00:00:46]}
{[%emt 00:01:17]} 40. Nf4 {[%clk 00:04:38]} {[%emt 00:00:19]} Rd1+ {[%clk
00:01:06]} {[%emt 00:00:09]} 1/2-1/2

[Event "Masters Tournament (MTO)"]
[Site "Biel, Switzerland"]
[Date "2026.07.14"]
[Round "2.8"]
[White "Alexakis, Dimitris"]
[Black "Matsumura, Cocoro"]
[Result "1-0"]
[TimeControl "100+30+30sec/move"]
[WhiteTitle "-"]
[BlackTitle "-"]
[WhiteFideId "4277023"]
[BlackFideId "36087114"]
[WhiteElo "2525"]
[BlackElo "2225"]

1. e4 {[%clk 01:35:49]} {[%emt 00:05:11]} c5 {[%clk 01:40:54]} {[%emt
00:00:06]} 2. Nf3 {[%clk 01:36:05]} {[%emt 00:00:13]} d6 {[%clk 01:41:17]}
{[%emt 00:00:08]} 3. d4 {[%clk 01:36:28]} {[%emt 00:00:07]} cxd4 {[%clk
01:41:44]} {[%emt 00:00:04]} 4. Nxd4 {[%clk 01:36:50]} {[%emt 00:00:07]} Nf6
{[%clk 01:42:08]} {[%emt 00:00:06]} 5. Nc3 {[%clk 01:37:14]} {[%emt 00:00:07]}
a6 {[%clk 01:42:32]} {[%emt 00:00:06]} 6. h3 {[%clk 01:37:39]} {[%emt
00:00:05]} e5 {[%clk 01:42:54]} {[%emt 00:00:08]} 7. Nde2 {[%clk 01:38:04]}
{[%emt 00:00:05]} h5 {[%clk 01:43:16]} {[%emt 00:00:08]} 8. g3 {[%clk
01:38:28]} {[%emt 00:00:05]} Be6 {[%clk 01:42:15]} {[%emt 00:01:32]} 9. Bg2
{[%clk 01:37:50]} {[%emt 00:01:07]} Nbd7 {[%clk 01:41:45]} {[%emt 00:01:00]} 10.
a4 {[%clk 01:34:26]} {[%emt 00:03:56]} Be7 {[%clk 01:40:19]} {[%emt 00:01:56]}
11. O-O {[%clk 01:30:47]} {[%emt 00:04:10]} O-O {[%clk 01:40:40]} {[%emt
00:00:09]} 12. a5 {[%clk 01:25:02]} {[%emt 00:06:15]} Rc8 {[%clk 01:38:09]}
{[%emt 00:03:00]} 13. Be3 {[%clk 01:21:08]} {[%emt 00:04:24]} Nb8 {[%clk
01:30:37]} {[%emt 00:08:02]} 14. Qd2 {[%clk 01:06:13]} {[%emt 00:15:25]} Qc7
{[%clk 01:11:49]} {[%emt 00:19:19]} 15. Rfc1 {[%clk 00:58:46]} {[%emt
00:07:56]} Bd8 {[%clk 01:04:03]} {[%emt 00:08:17]} 16. Nd5 {[%clk 00:54:46]}
{[%emt 00:04:30]} Qd7 {[%clk 01:03:07]} {[%emt 00:01:25]} 17. Kh2 {[%clk
00:54:55]} {[%emt 00:00:21]} Bxd5 {[%clk 00:58:52]} {[%emt 00:04:45]} 18. exd5
{[%clk 00:55:17]} {[%emt 00:00:08]} Qb5 {[%clk 00:55:53]} {[%emt 00:03:29]} 19.
b3 {[%clk 00:46:47]} {[%emt 00:09:01]} Be7 {[%clk 00:51:42]} {[%emt 00:04:41]}
20. c4 {[%clk 00:42:04]} {[%emt 00:05:12]} Qxb3 {[%clk 00:48:48]} {[%emt
00:03:25]} 21. Rc3 {[%clk 00:40:18]} {[%emt 00:02:15]} Qb4 {[%clk 00:48:52]}
{[%emt 00:00:26]} 22. Qc2 {[%clk 00:40:32]} {[%emt 00:00:16]} Nbd7 {[%clk
00:46:54]} {[%emt 00:02:29]} 23. Ra4 {[%clk 00:40:31]} {[%emt 00:00:31]} 1-0

[Event "Masters Tournament (MTO)"]
[Site "Biel, Switzerland"]
[Date "2026.07.14"]
[Round "2.9"]
[White "Ling, Chenxuan"]
[Black "Gloeckler, Christian"]
[Result "1/2-1/2"]
[TimeControl "100+30+30sec/move"]
[WhiteTitle "-"]
[BlackTitle "-"]
[WhiteFideId "30983118"]
[BlackFideId "34608966"]
[WhiteElo "2166"]
[BlackElo "2506"]

1. d4 {[%clk 01:37:45]} {[%emt 00:03:15]} Nf6 {[%clk 01:40:56]} {[%emt
00:00:04]} 2. c4 {[%clk 01:37:44]} {[%emt 00:00:30]} e6 {[%clk 01:41:19]}
{[%emt 00:00:08]} 3. Nc3 {[%clk 01:38:07]} {[%emt 00:00:06]} Bb4 {[%clk
01:41:41]} {[%emt 00:00:08]} 4. Qc2 {[%clk 01:38:31]} {[%emt 00:00:06]} O-O
{[%clk 01:42:02]} {[%emt 00:00:09]} 5. e4 {[%clk 01:38:57]} {[%emt 00:00:05]}
d5 {[%clk 01:42:25]} {[%emt 00:00:07]} 6. e5 {[%clk 01:39:14]} {[%emt
00:00:13]} Ne4 {[%clk 01:42:50]} {[%emt 00:00:04]} 7. Bd3 {[%clk 01:39:35]}
{[%emt 00:00:09]} c5 {[%clk 01:43:14]} {[%emt 00:00:07]} 8. Nf3 {[%clk
01:40:00]} {[%emt 00:00:04]} cxd4 {[%clk 01:43:35]} {[%emt 00:00:09]} 9. Nxd4
{[%clk 01:40:20]} {[%emt 00:00:10]} Nd7 {[%clk 01:44:01]} {[%emt 00:00:04]} 10.
Bf4 {[%clk 01:40:34]} {[%emt 00:00:15]} Qh4 {[%clk 01:44:24]} {[%emt 00:00:07]}
11. g3 {[%clk 01:40:58]} {[%emt 00:00:07]} Qh5 {[%clk 01:44:46]} {[%emt
00:00:07]} 12. O-O {[%clk 01:37:50]} {[%emt 00:03:39]} g5 {[%clk 01:45:10]}
{[%emt 00:00:06]} 13. cxd5 {[%clk 01:35:18]} {[%emt 00:03:04]} Nxc3 {[%clk
01:45:30]} {[%emt 00:00:10]} 14. dxe6 {[%clk 01:33:31]} {[%emt 00:02:18]} gxf4
{[%clk 01:45:47]} {[%emt 00:00:12]} 15. exd7 {[%clk 01:33:19]} {[%emt
00:00:43]} Bxd7 {[%clk 01:46:09]} {[%emt 00:00:07]} 16. bxc3 {[%clk 01:33:35]}
{[%emt 00:00:14]} fxg3 {[%clk 01:46:34]} {[%emt 00:00:05]} 17. hxg3 {[%clk
01:33:56]} {[%emt 00:00:09]} Rac8 {[%clk 01:46:46]} {[%emt 00:00:18]} 18. Bf5
{[%clk 01:33:55]} {[%emt 00:00:32]} Bxc3 {[%clk 01:47:03]} {[%emt 00:00:13]} 19.
Qd1 {[%clk 01:34:18]} {[%emt 00:00:06]} Qxd1 {[%clk 01:40:00]} {[%emt
00:07:33]} 20. Raxd1 {[%clk 01:34:35]} {[%emt 00:00:14]} Rc4 {[%clk 01:38:33]}
{[%emt 00:01:56]} 21. Bxd7 {[%clk 01:34:59]} {[%emt 00:00:06]} Rxd4 {[%clk
01:38:53]} {[%emt 00:00:10]} 22. e6 {[%clk 01:35:24]} {[%emt 00:00:06]} fxe6
{[%clk 01:38:57]} {[%emt 00:00:26]} 23. Bxe6+ {[%clk 01:35:49]} {[%emt
00:00:04]} Kh8 {[%clk 01:35:15]} {[%emt 00:04:12]} 24. Rxd4 {[%clk 01:35:59]}
{[%emt 00:00:20]} Bxd4 {[%clk 01:35:36]} {[%emt 00:00:09]} 25. Kg2 {[%clk
01:36:18]} {[%emt 00:00:10]} Bc5 {[%clk 01:33:13]} {[%emt 00:02:54]} 26. Bg4
{[%clk 01:35:50]} {[%emt 00:00:59]} Rf6 {[%clk 01:32:24]} {[%emt 00:01:18]} 27.
Bf3 {[%clk 01:36:01]} {[%emt 00:00:19]} Ra6 {[%clk 01:31:50]} {[%emt 00:01:04]}
28. Rc1 {[%clk 01:35:58]} {[%emt 00:00:33]} b6 {[%clk 01:31:54]} {[%emt
00:00:27]} 29. Rc2 {[%clk 01:36:18]} {[%emt 00:00:09]} Ra3 {[%clk 01:31:19]}
{[%emt 00:01:05]} 30. Rd2 {[%clk 01:36:23]} {[%emt 00:00:26]} b5 {[%clk
01:18:24]} {[%emt 00:13:25]} 31. Bc6 {[%clk 01:35:18]} {[%emt 00:01:34]} b4
{[%clk 01:18:13]} {[%emt 00:00:41]} 32. Bd5 {[%clk 01:34:54]} {[%emt 00:00:54]}
a5 {[%clk 00:44:13]} {[%emt 00:34:31]} 33. Rc2 {[%clk 01:35:03]} {[%emt
00:00:20]} Rc3 {[%clk 00:43:12]} {[%emt 00:01:30]} 34. Rxc3 {[%clk 01:35:25]}
{[%emt 00:00:09]} bxc3 {[%clk 00:43:34]} {[%emt 00:00:09]} 35. Bb3 {[%clk
01:35:53]} {[%emt 00:00:01]} Kg7 {[%clk 00:43:32]} {[%emt 00:00:32]} 1/2-1/2

[Event "Masters Tournament (MTO)"]
[Site "Biel, Switzerland"]
[Date "2026.07.14"]
[Round "2.10"]
[White "Shukhman, Anna"]
[Black "Liu, Bei"]
[Result "1-0"]
[TimeControl "100+30+30sec/move"]
[WhiteTitle "-"]
[BlackTitle "-"]
[WhiteFideId "54180058"]
[BlackFideId "8603596"]
[WhiteElo "2443"]
[BlackElo "2175"]

1. e4 {[%emt 00:00:15]} c5 {[%clk 01:40:50]} 2. Nf3 {[%clk 01:41:22]} {[%emt
00:00:02]} d6 {[%clk 01:41:16]} {[%emt 00:00:05]} 3. d4 {[%clk 01:41:47]}
{[%emt 00:00:06]} cxd4 {[%clk 01:41:41]} {[%emt 00:00:04]} 4. Nxd4 {[%clk
01:42:15]} {[%emt 00:00:02]} Nf6 {[%clk 01:42:06]} {[%emt 00:00:03]} 5. Nc3
{[%clk 01:42:42]} {[%emt 00:00:04]} a6 {[%clk 01:42:30]} {[%emt 00:00:06]} 6.
Be2 {[%clk 01:43:10]} {[%emt 00:00:03]} e5 {[%clk 01:42:53]} {[%emt 00:00:07]}
7. Nb3 {[%clk 01:43:36]} {[%emt 00:00:04]} Be7 {[%clk 01:43:19]} {[%emt
00:00:03]} 8. Be3 {[%clk 01:44:03]} {[%emt 00:00:03]} Be6 {[%clk 01:43:44]}
{[%emt 00:00:05]} 9. Nd5 {[%clk 01:44:31]} {[%emt 00:00:03]} Nbd7 {[%clk
01:42:54]} {[%emt 00:01:19]} 10. Qd3 {[%clk 01:44:53]} {[%emt 00:00:08]} Bxd5
{[%clk 01:41:28]} {[%emt 00:01:56]} 11. exd5 {[%clk 01:45:18]} {[%emt
00:00:05]} O-O {[%clk 01:41:47]} {[%emt 00:00:11]} 12. g4 {[%clk 01:42:48]}
{[%emt 00:03:01]} Ne8 {[%clk 01:36:48]} {[%emt 00:05:30]} 13. h4 {[%clk
01:40:28]} {[%emt 00:02:50]} g6 {[%clk 01:30:28]} {[%emt 00:06:50]} 14. O-O-O
{[%clk 01:21:55]} {[%emt 00:19:04]} Bxh4 {[%clk 01:01:45]} {[%emt 00:29:13]} 15.
Rh3 {[%clk 01:14:08]} {[%emt 00:08:17]} Ng7 {[%clk 00:52:47]} {[%emt 00:09:28]}
16. Rdh1 {[%clk 01:05:46]} {[%emt 00:08:52]} g5 {[%clk 00:52:46]} {[%emt
00:00:31]} 17. Nd2 {[%clk 01:06:12]} {[%emt 00:00:04]} f5 {[%clk 00:42:00]}
{[%emt 00:11:16]} 18. gxf5 {[%clk 01:06:28]} {[%emt 00:00:14]} Nxf5 {[%clk
00:42:25]} {[%emt 00:00:04]} 19. Nf3 {[%clk 01:01:44]} {[%emt 00:05:14]} Qf6
{[%clk 00:36:22]} {[%emt 00:06:34]} 20. Rg1 {[%clk 00:54:48]} {[%emt 00:07:26]}
Kh8 {[%clk 00:34:51]} {[%emt 00:02:01]} 21. Bxg5 {[%clk 00:45:02]} {[%emt
00:10:16]} Bxg5+ {[%clk 00:35:18]} {[%emt 00:00:03]} 22. Nxg5 {[%clk 00:45:25]}
{[%emt 00:00:06]} h6 {[%clk 00:35:39]} {[%emt 00:00:09]} 23. Ne4 {[%clk
00:44:43]} {[%emt 00:01:13]} Qe7 {[%clk 00:35:56]} {[%emt 00:00:13]} 24. Bg4
{[%clk 00:37:44]} {[%emt 00:07:29]} Qg7 {[%clk 00:25:52]} {[%emt 00:10:33]} 25.
Qd1 {[%clk 00:36:58]} {[%emt 00:01:16]} Nd4 {[%clk 00:25:25]} {[%emt 00:00:57]}
26. Rgh1 {[%clk 00:35:02]} {[%emt 00:02:56]} Nf6 {[%clk 00:22:43]} {[%emt
00:02:42]} 27. Rxh6+ {[%clk 00:32:51]} {[%emt 00:02:41]} Kg8 {[%clk 00:23:11]}
{[%emt 00:00:02]} 28. Be6+ {[%clk 00:31:07]} {[%emt 00:02:15]} Nxe6 {[%clk
00:23:28]} {[%emt 00:00:12]} 29. dxe6 {[%clk 00:31:34]} {[%emt 00:00:04]} Nxe4
{[%clk 00:23:04]} {[%emt 00:00:53]} 30. Qh5 {[%clk 00:31:00]} {[%emt 00:01:04]}
1-0

[Event "Masters Tournament (MTO)"]
[Site "Biel, Switzerland"]
[Date "2026.07.14"]
[Round "2.11"]
[White "Kudryavtsev, Eugene"]
[Black "Baenziger, Fabian"]
[Result "0-1"]
[TimeControl "100+30+30sec/move"]
[WhiteTitle "-"]
[BlackTitle "-"]
[WhiteFideId "1315374"]
[BlackFideId "1330110"]
[WhiteElo "2146"]
[BlackElo "2435"]

1. d4 {[%clk 01:40:52]} {[%emt 00:00:07]} Nf6 {[%clk 01:40:41]} {[%emt
00:00:19]} 2. c4 {[%clk 01:41:14]} {[%emt 00:00:08]} e6 {[%clk 01:41:00]}
{[%emt 00:00:11]} 3. Nf3 {[%clk 01:41:11]} {[%emt 00:00:32]} d5 {[%clk
01:40:56]} {[%emt 00:00:35]} 4. Nc3 {[%clk 01:41:29]} {[%emt 00:00:12]} c6
{[%clk 01:40:49]} {[%emt 00:00:37]} 5. e3 {[%clk 01:41:33]} {[%emt 00:00:26]}
Bd6 {[%clk 01:39:21]} {[%emt 00:01:58]} 6. Qc2 {[%clk 01:41:27]} {[%emt
00:00:36]} O-O {[%clk 01:39:11]} {[%emt 00:00:40]} 7. Bd3 {[%clk 01:29:03]}
{[%emt 00:12:56]} Nbd7 {[%clk 01:38:35]} {[%emt 00:01:05]} 8. O-O {[%clk
01:22:01]} {[%emt 00:07:32]} dxc4 {[%clk 01:37:48]} {[%emt 00:01:17]} 9. Bxc4
{[%clk 01:22:25]} {[%emt 00:00:07]} b5 {[%clk 01:38:06]} {[%emt 00:00:12]} 10.
Bd3 {[%clk 01:22:43]} {[%emt 00:00:12]} Bb7 {[%clk 01:38:15]} {[%emt 00:00:21]}
11. Bd2 {[%clk 01:08:49]} {[%emt 00:14:24]} Rc8 {[%clk 01:35:09]} {[%emt
00:03:35]} 12. a3 {[%clk 00:41:14]} {[%emt 00:28:07]} a5 {[%clk 01:31:45]}
{[%emt 00:03:53]} 13. Ng5 {[%clk 00:30:12]} {[%emt 00:11:31]} c5 {[%clk
01:24:33]} {[%emt 00:07:42]} 14. Bxh7+ {[%clk 00:08:34]} {[%emt 00:22:09]} Kh8
{[%clk 01:23:10]} {[%emt 00:01:53]} 15. Be4 {[%clk 00:08:58]} {[%emt 00:00:06]}
Ba6 {[%clk 01:09:17]} {[%emt 00:14:22]} 16. Qd1 {[%clk 00:04:48]} {[%emt
00:04:41]} b4 {[%clk 01:07:16]} {[%emt 00:02:31]} 17. Qf3 {[%clk 00:05:14]}
{[%emt 00:00:04]} g6 {[%clk 01:07:41]} {[%emt 00:00:05]} 18. Ne2 {[%clk
00:04:56]} {[%emt 00:00:47]} Kg7 {[%clk 01:05:16]} {[%emt 00:02:55]} 19. Bb7
{[%clk 00:02:12]} {[%emt 00:03:15]} Bxh2+ {[%clk 00:52:29]} {[%emt 00:14:31]}
20. Kh1 {[%clk 00:02:38]} Bxb7 {[%clk 00:46:59]} {[%emt 00:04:50]} 21. Qxb7
{[%clk 00:03:03]} {[%emt 00:00:04]} Rh8 {[%clk 00:47:13]} {[%emt 00:00:16]} 22.
Nh3 {[%clk 00:03:09]} {[%emt 00:00:25]} Bb8 {[%clk 00:43:47]} {[%emt 00:03:56]}
23. f4 {[%clk 00:02:37]} {[%emt 00:01:03]} cxd4 {[%clk 00:39:20]} {[%emt
00:04:56]} 24. axb4 {[%clk 00:02:04]} {[%emt 00:01:02]} axb4 {[%clk 00:32:02]}
{[%emt 00:07:49]} 25. Bxb4 {[%clk 00:02:02]} {[%emt 00:00:33]} Nd5 {[%clk
00:32:25]} {[%emt 00:00:06]} 26. Nxd4 {[%clk 00:02:09]} {[%emt 00:00:23]} Rc7
{[%clk 00:26:58]} {[%emt 00:05:57]} 27. Qb5 {[%clk 00:02:36]} {[%emt 00:00:03]}
N7f6 {[%clk 00:25:53]} {[%emt 00:01:35]} 28. Rae1 {[%clk 00:02:25]} {[%emt
00:00:40]} Ne4 {[%clk 00:21:51]} {[%emt 00:04:32]} 29. Rf3 {[%clk 00:02:03]}
{[%emt 00:00:53]} Qh4 {[%clk 00:19:41]} {[%emt 00:02:39]} 30. f5 {[%clk
00:02:08]} {[%emt 00:00:26]} Nxb4 {[%clk 00:17:49]} {[%emt 00:02:22]} 31. f6+
{[%clk 00:02:00]} {[%emt 00:00:37]} Kh7 {[%clk 00:16:13]} {[%emt 00:02:06]} 32.
Qxb4 {[%clk 00:02:23]} {[%emt 00:00:08]} Rb7 {[%clk 00:12:54]} {[%emt
00:03:49]} 33. Qa5 {[%clk 00:02:40]} {[%emt 00:00:13]} Ra7 {[%clk 00:13:17]}
{[%emt 00:00:06]} 34. Qb4 {[%clk 00:02:50]} {[%emt 00:00:20]} Bd6 {[%clk
00:13:23]} {[%emt 00:00:24]} 0-1